[Event "LV Capablanca Memorial Elite 2022"]
[Site "La Habana"]
[Date "2022.04.28"]
[Round "9.4"]
[White "Mareco, Sandro"]
[Black "Quesada Perez, Yasser"]
[Result "1/2-1/2"]
[ECO "B31"]
[WhiteElo "2643"]
[BlackElo "2568"]
[Annotator "TA"]
[PlyCount "147"]
[EventDate "2022.04.20"]
[EventType "tourn"]
[EventCountry "CUB"]
[SourceTitle "playchess.com"]
[Source "ChessBase"]
[SourceQuality "1"]
[TimeControl "40/5400+30:1800+30"]

{[%evp 14,147,30,14,46,39,46,43,66,17,23,0,0,0,0,0,0,-5,-8,-16,-7,-22,0,0,0,-30,-27,-25,-27,-62,-58,-75,-63,-58,-52,-146,-154,-148,-151,-141,-137,-141,-141,-143,-143,-145,-143,-144,-148,-144,-148,-141,-135,-148,-143,-144,-146,-143,-138,-155,-139,-139,-146,-132,-76,-79,-75,-83,-75,-83,-89,-97,-98,-118,-122,-111,-110,-170,-175,-168,-95,-90,0,-148,-147,-162,-93,-116,-118,-135,-131,-137,-130,-134,-95,-85,-39,-68,-47,-63,-60,-77,-73,-65,-41,-50,0,-74,0,-41,-30,-30,-31,-42,-33,-50,-50,-50,-44,-95,-19,-61,-61,-61,-54,-54,-10,-18,-8,-8,-8,-36,0,0,0,0]} 1. e4 {[%emt 0:00:02]} c5 {[%emt 0:00:15]} 2. Nf3 {[%emt 0:00:05]} Nc6 {[%emt 0:00:09]} 3. Bb5 {[%emt 0:00:04]} g6 {[%emt 0:00:12]} 4. O-O {[%emt 0:00:52]} Bg7 {[%emt 0:00:11]} 5. Re1 {[%emt 0:03:57]} e5 {[%emt 0:00:06]} 6. Bxc6 {[%emt 0:00:05]} dxc6 {[%emt 0:03:02]} 7. d3 {[%emt 0:00:42]} Qe7 {[%emt 0:00:19]} 8. a4 {[%emt 0:00:10][%cal Ba2a4,Ba4a5][%mdl 32]} Nh6 {[%emt 0:04:36] B31: Sicilian: 2...Nc6 3 Bb5 g6.} 9. a5 {[%emt 0:04:03]} f6 {[%emt 0:04:14]} 10. Nc3 {[%emt 0:00:07]} Be6 {[%emt 0:01:44] White is slightly better.} 11. h3 {[%emt 0:05:28]} (11. Be3 $14 {was preferrable.}) 11... O-O $11 {[%emt 0:04:05]} 12. Be3 {[%emt 0:00:06]} (12. Na4 $5 {[%cal Rc1e3]}) 12... b5 {[%emt 0:04:30] Against Na4} 13. axb6 {[%emt 0:33:49]} axb6 {[%emt 0:00:08] [#]} 14. Rxa8 $146 {[%emt 0:13:17]} ({Predecessor:} 14. b3 Nf7 15. Qd2 f5 16. Rxa8 Rxa8 17. exf5 gxf5 18. Ng5 Bd5 19. Na4 Nxg5 20. Bxg5 Qc7 21. c4 Bf7 22. Bh6 Bf6 23. Bg5 Bg7 24. Bh6 Bf6 {½-½ (24) Peetoom,F (1914)-Ochsenhirt,J DESC email 2006}) 14... Rxa8 {[%emt 0:00:06]} 15. b3 {[%emt 0:00:03]} b5 {[%emt 0:03:22]} 16. Qd2 {[%emt 0:05:16]} Nf7 {[%emt 0:00:08]} 17. Nh2 {[%emt 0:03:42]} c4 {[%emt 0:06:14]} 18. bxc4 {[%emt 0:01:05]} bxc4 {[%emt 0:00:04]} 19. d4 {[%emt 0:00:40]} exd4 {[%emt 0:23:23]} 20. Bxd4 {[%emt 0:00:04]} Rd8 {[%emt 0:00:06]} 21. Qe3 {[%emt 0:01:05]} Bh6 $1 {[%emt 0:02:06][%cal Bg7h6,Bh6f4,Bf4e5,Be5c3][%mdl 32]} 22. Bc5 {[%emt 0:00:09]} Qc7 {[%emt 0:00:23]} 23. Qf3 {[%emt 0:02:07]} Bf4 {[%emt 0:04:51]} 24. e5 {[%emt 0:00:19]} ({Don't play} 24. Ng4 Ng5 25. Qe2 (25. Nxf6+ $2 Kf7 $19) 25... Rd2 $17) (24. Nf1 $1 $15) 24... Bxe5 $17 {[%emt 0:02:43]} 25. Nf1 {[%emt 0:01:49]} Qa5 $36 {[%emt 0:09:31][%csl LRc3,LRc5][%mdl 2048] Keeping White busy.} 26. Qe3 {[%emt 0:01:28]} Bxc3 {[%emt 0:01:57] This bishop pair is nice.} 27. Bb6 {[%emt 0:00:04]} Qe5 {[%emt 0:01:15]} 28. f4 {[%emt 0:01:28]} Qxe3+ {[%emt 0:05:10]} 29. Rxe3 {[%emt 0:00:04] [#]} Rb8 {[%emt 0:00:58]} 30. Ba7 {[%emt 0:00:05]} Rb7 {[%emt 0:03:57]} 31. Bc5 {[%emt 0:00:04] [#]} Rb5 $1 {[%emt 0:01:06]} 32. Ba7 {[%emt 0:00:05] [#]} Be5 $1 {[%emt 0:02:05]} 33. fxe5 {[%emt 0:01:04]} fxe5 {[%emt 0:00:07]} 34. Re1 {[%emt 0:00:40]} Kf8 {[%emt 0:03:51]} 35. Bf2 {[%emt 0:00:19][%cal Ba7f2,Bf2h4,Bh4f6,Bf6d4,Bd4b6][%mdl 32]} Ke7 {[%emt 0:03:57]} 36. Ne3 {[%emt 0:00:04]} Nd6 {[%emt 0:02:07]} 37. Bh4+ {[%emt 0:00:11]} Kd7 {[%emt 0:00:07]} 38. Bf6 {[%emt 0:00:07]} e4 {[%emt 0:01:57]} (38... Nf7 $142 39. Bg7 Ra5) 39. g4 {[%emt 0:00:42]} Bd5 {[%emt 0:01:18]} 40. Rf1 {[%emt 0:00:00]} Ra5 {[%emt 0:00:00]} 41. Bd4 {[%emt 0:03:58]} Nb5 {[%emt 0:04:22]} 42. Bb6 {[%emt 0:00:19]} Ra2 {[%emt 0:03:46]} 43. Bc5 {[%emt 0:03:31]} c3 {[%emt 0:02:41]} 44. Kh2 {[%emt 0:04:03]} Na3 {[%emt 0:01:43]} 45. Rf2 {[%emt 0:06:13]} (45. Rc1 $17 {might work better.}) 45... Nc4 $19 {[%emt 0:00:06]} 46. Kg3 {[%emt 0:00:05]} Nd2 {[%emt 0:06:07]} (46... Nxe3 $19 47. Bxe3 Kd6) 47. Rf8 {[%emt 0:13:54]} Nc4 {[%emt 0:03:27]} (47... h6 $142) 48. Rf2 $17 {[%emt 0:00:28]} Ke6 {[%emt 0:01:40]} 49. Nd1 {[%emt 0:05:54]} Nd2 {[%emt 0:02:21]} (49... Ra5 $19 50. Bd4 c5) 50. Ne3 {[%emt 0:02:20]} Nf3 {[%emt 0:00:05]} 51. Nd1 {[%emt 0:00:29]} Ra5 {[%emt 0:01:52]} 52. Bb4 {[%emt 0:00:45]} Ra1 {[%emt 0:00:04]} 53. Nxc3 {[%emt 0:00:07]} Rg1+ {[%emt 0:00:54]} 54. Kf4 {[%emt 0:00:04]} g5+ {[%emt 0:02:29]} 55. Ke3 {[%emt 0:00:04]} Ke5 {[%emt 0:02:16]} 56. Ba5 {[%emt 0:09:58]} Nh4 {[%emt 0:03:04] And now ...Ng2+ would win.} 57. Bc7+ {[%emt 0:03:14]} Ke6 {[%emt 0:00:01]} 58. Kd4 {[%emt 0:01:17]} Nf3+ {[%emt 0:00:31]} 59. Ke3 $1 {[%emt 0:00:06]} Nh4 {[%emt 0:01:54]} 60. Kd4 $1 {[%emt 0:00:14]} Re1 {[%emt 0:03:57]} (60... Ra1 $17 {White must now prevent ...Ra3.} 61. Kc5 Nf3) 61. Re2 {[%emt 0:00:22]} Nf3+ {[%emt 0:00:37]} 62. Ke3 $1 {[%emt 0:00:05]} Rxe2+ {[%emt 0:00:07]} 63. Nxe2 $11 {[%emt 0:00:21][%mdl 4096] Endgame KBN-KBN} Ne1 {[%emt 0:00:05]} 64. Nd4+ {[%emt 0:06:37]} Kd7 65. Bg3 {[%emt 0:00:15]} Ng2+ {[%emt 0:00:08]} 66. Kf2 {[%emt 0:00:18]} (66. Ke2 $15) 66... Nf4 {[%emt 0:01:20]} ({Black should try} 66... e3+ $17 67. Ke2 Bc4+ 68. Kf3 Bf1) 67. h4 {[%emt 0:00:39]} e3+ $1 {[%emt 0:00:50]} 68. Kxe3 {[%emt 0:00:25]} Ng2+ {[%emt 0:00:04]} 69. Kf2 {[%emt 0:02:38]} gxh4 {[%emt 0:00:00]} 70. Bh2 {[%emt 0:00:20][%cal Oc2c4]} h3 {[%emt 0:00:04]} 71. c3 {[%emt 0:00:08]} c5 {[%emt 0:00:48]} 72. Ne2 {[%emt 0:00:06]} Nh4 {[%emt 0:00:39] Threatens to win with ...Nf3.} (72... Be6 $5 {[%cal Re6g4]}) 73. Nf4 {[%emt 0:00:13]} Bg2 {[%emt 0:02:04]} 74. Bg3 {[%emt 0:01:06] And White is the lucky defender.  Weighted Error Value: White=0.08 (flawless) /Black=0.14 (very precise)} 1/2-1/2

[Event "LV Capablanca Memorial Elite 2022"]
[Site "La Habana"]
[Date "2022.04.28"]
[Round "9.5"]
[White "Durarbayli, Vasif"]
[Black "Ganguly, Surya Shekhar"]
[Result "1-0"]
[ECO "B92"]
[WhiteElo "2615"]
[BlackElo "2627"]
[Annotator "TA"]
[PlyCount "115"]
[EventDate "2022.04.20"]
[EventType "tourn"]
[EventCountry "CUB"]
[SourceTitle "playchess.com"]
[Source "ChessBase"]
[SourceQuality "1"]
[TimeControl "40/5400+30:1800+30"]

{[%evp 16,115,10,9,23,10,6,16,8,0,5,0,14,0,0,0,0,0,12,0,13,15,45,40,30,28,77,34,81,48,47,49,78,76,79,56,66,77,69,66,55,47,87,72,72,89,89,83,86,77,79,86,231,221,217,212,459,458,459,458,465,438,404,402,710,693,735,664,718,690,708,703,704,636,729,706,654,601,536,459,818,814,761,745,29957,29956,29961,29961,29960,29962,29961,29962,29962,29960,29964,1164,29966,29969,29969,29970,29970,29964]} 1. e4 {[%emt 0:00:02]} c5 {[%emt 0:01:54]} 2. Nf3 {[%emt 0:01:16]} d6 {[%emt 0:00:07]} 3. d4 {[%emt 0:00:04]} cxd4 {[%emt 0:00:08]} 4. Nxd4 {[%emt 0:00:03]} Nf6 {[%emt 0:00:10]} 5. Nc3 {[%emt 0:00:03]} a6 {[%emt 0:00:06]} 6. Be2 {[%emt 0:00:18]} e5 {[%emt 0:00:19]} 7. Nb3 {[%emt 0:00:04]} Be7 {[%emt 0:00:13]} 8. O-O {[%emt 0:00:05]} O-O {[%emt 0:00:20]} 9. Re1 {[%emt 0:00:03]} Be6 {[%emt 0:01:09] B92: Sicilian Najdorf: 6 Be2.} 10. Bf3 {[%emt 0:00:08]} Qc7 {[%emt 0:00:27]} 11. Be3 {[%emt 0:01:38]} Rc8 {[%emt 0:00:49] The position is equal.} 12. h3 {[%emt 0:05:43]} h6 {[%emt 0:00:08]} 13. a4 {[%emt 0:05:39]} Nbd7 {[%emt 0:00:09] [#]} 14. Qd3 $1 $146 {[%emt 0:01:26][%mdl 8] An important novelty.} ({Predecessor:} 14. a5 Rab8 15. Re2 Qc6 16. Nd5 Bd8 17. c3 Bxd5 18. exd5 Qc4 19. Re1 b5 20. axb6 Bxb6 21. Bxb6 Rxb6 {0-1 (71) Alekseenko,K (2693)-Giri,A (2777) Yasnaya Polyana 2021}) 14... Bc4 {[%emt 0:04:55]} 15. Qd2 {[%emt 0:03:34]} Be6 {[%emt 0:06:20]} 16. a5 {[%emt 0:02:56]} Rab8 {[%emt 0:00:19]} 17. Rec1 {[%emt 0:05:56]} Qd8 {[%emt 0:18:22]} 18. Qe1 {[%emt 0:08:46]} Ne8 {[%emt 0:10:03]} 19. Nd2 {[%emt 0:04:19]} Bg5 {[%emt 0:06:39]} 20. Nf1 {[%emt 0:01:05]} Ndf6 {[%emt 0:00:43]} (20... Nf8 $11) 21. Na4 {[%emt 0:06:49]} Rc4 {[%emt 0:06:35]} (21... Nd7 $14 {was preferrable.}) 22. b3 {[%emt 0:02:52]} Bxe3 {[%emt 0:01:20]} 23. Nxe3 {[%emt 0:03:14]} Rxe4 {[%emt 0:00:56]} 24. Bxe4 {[%emt 0:00:58]} Nxe4 {[%emt 0:00:04]} 25. Nc3 {[%emt 0:03:27]} Nxc3 {[%emt 0:02:28]} 26. Qxc3 {[%emt 0:00:02]} Qg5 {[%emt 0:01:10]} 27. Nf1 {[%emt 0:00:37]} f5 {[%emt 0:00:55]} 28. Qg3 {[%emt 0:01:04]} Rc8 {[%emt 0:08:59]} 29. c4 {[%emt 0:00:18]} Qxg3 {[%emt 0:05:28]} 30. Nxg3 {[%emt 0:00:02]} Kf8 {[%emt 0:00:31]} 31. Ne2 {[%emt 0:01:49]} Ke7 {[%emt 0:02:11]} 32. Nc3 {[%emt 0:03:25]} Rc5 {[%emt 0:00:27]} 33. Na4 {[%emt 0:00:45]} Rxa5 {[%emt 0:04:16] Loses the game.} (33... Rc6 $16) 34. b4 $18 {[%emt 0:00:14][%mdl 64] [#] Trapped Piece} Rxa4 {[%emt 0:00:05]} 35. Rxa4 {[%emt 0:00:03]} b5 $2 {[%emt 0:01:30]} (35... Bxc4 36. Rxc4 b5) 36. cxb5 {[%emt 0:06:30]} axb5 {[%emt 0:01:01]} 37. Ra7+ {[%emt 0:00:04]} Bd7 {[%emt 0:00:40]} 38. Rc6 {[%emt 0:04:16]} Ke6 {[%emt 0:01:40]} 39. Rb6 {[%emt 0:00:17]} g5 {[%emt 0:00:18]} (39... e4 $142 40. g4 Nf6 41. gxf5+ Ke5) 40. g4 {[%emt 0:00:00]} fxg4 {[%emt 0:00:00]} 41. hxg4 {[%emt 0:08:09]} e4 {[%emt 0:06:19]} 42. Kg2 {[%emt 0:07:09]} Nf6 {[%emt 0:00:47]} 43. Raa6 {[%emt 0:00:20]} Ne8 {[%emt 0:00:38]} 44. Kg3 {[%emt 0:01:33]} Ke5 {[%emt 0:03:27]} 45. Ra7 {[%emt 0:05:56]} Nf6 {[%emt 0:00:11] [#]} 46. Rxd7 $1 {[%emt 0:04:54][%mdl 512]} Nxd7 {[%emt 0:00:06]} 47. Rxb5+ {[%emt 0:00:16][%mdl 4096] Endgame KR-KN} d5 {[%emt 0:02:35]} (47... Kd4 $142 48. Rb7 Nf6) 48. Ra5 {[%emt 0:00:09]} Nf6 {[%emt 0:06:26]} 49. b5 {[%emt 0:02:41][%cal Bb4b5,Bb5b6,Bb6b7][%mdl 32]} h5 {[%emt 0:00:17]} 50. b6 {[%emt 0:07:08]} h4+ {[%emt 0:00:20]} 51. Kg2 {[%emt 0:01:00]} Kd6 {[%emt 0:05:14]} 52. Rb5 {[%emt 0:00:07]} Nd7 {[%emt 0:00:24]} 53. b7 {[%emt 0:00:45]} Nb8 {[%emt 0:00:39]} 54. Rb6+ {[%emt 0:00:05]} Kc7 {[%emt 0:03:16]} 55. Rg6 {[%emt 0:00:55]} (55. Re6 $142 Kxb7 56. Rd6 Nc6 57. Rxd5 Kc7 58. Kh3 Nb4 59. Rxg5 Kd7 60. Rf5) 55... Kxb7 {[%emt 0:01:19]} 56. Rd6 {[%emt 0:01:33] White mates.} Kc7 {[%emt 0:00:50]} 57. Rxd5 {[%emt 0:00:05]} Nd7 {[%emt 0:00:24]} 58. Kh3 {[%emt 0:00:25] Weighted Error Value: White=0.07 (flawless) /Black=0.46} 1-0